bitfinex-derivatives/quotes_ETHF0:USTF0_20250807
["timestamp","ask_amount","ask_price","bid_price","bid_amount"]
[1754586242044,18.668,3814.8,3814.2,1.31055]
[1754586242344,1.5588,3814.8,3814.7,0.52414]
[1754586242948,1.5588,3814.5,3814.3,1.0692]
[1754586243149,18.667,3815.1,3814.3,0.5242]
[1754586243355,0.5638,3814.7,3814.4,0.52418]
[1754586243555,41.795,3814.5,3814.4,0.52418]
[1754586243747,42.3588,3814.5,3814.4,0.52418]
[1754586244051,42.3588,3814.5,3814.4,1.06918]
[1754586244450,41.7758,3814.5,3814.4,1.06918]
[1754586244656,1.5588,3814.4,3814.3,0.5242]
[1754586245048,40.8,3814.5,3814.3,1.0692]
[1754586245353,40.8,3814.5,3814.4,0.545]
[1754586245556,41.3638,3814.5,3814.4,0.545]
[1754586245754,42.3588,3814.5,3814.4,0.545]
[1754586245954,1.5588,3814.4,3814.3,0.5242]
[1754586246154,40.8,3814.5,3814.3,0.52419]
[1754586246554,40.8,3814.5,3814.4,0.545]
[1754586247354,41.3638,3814.5,3814.4,0.545]
[1754586247553,42.3588,3814.5,3814.4,0.545]
[1754586248152,1.5588,3814.4,3814.3,0.52419]
[1754586248457,0.995,3814.2,3813.9,0.9439033]
[1754586248752,0.995,3814.0,3813.9,0.9439033]
[1754586248956,42.3588,3814.0,3813.9,0.4865033]
[1754586249953,0.52427,3813.8,3813.5,0.5243]
[1754586250254,1.5588,3813.6,3813.5,0.5243]
[1754586250757,1.5588,3813.6,3813.1,0.4242]
[1754586251056,0.995,3813.2,3813.1,0.52435]
[1754586251252,0.583,3813.1,3813.0,0.52437]
[1754586251451,0.52442,3812.7,3812.3,0.52448]
[1754586251646,0.52442,3812.7,3811.8,3.78342508]
[1754586251647,1.5588,3812.5,3812.2,0.52448]
[1754586251945,42.3588,3812.3,3812.2,0.52448]
[1754586252351,40.8,3812.3,3812.2,2.06188]
[1754586252553,41.3638,3812.3,3812.2,1.49368]
[1754586252749,42.3588,3812.3,3812.2,0.52448]
[1754586253059,40.8,3812.3,3812.2,0.52449]
[1754586253450,42.4003,3812.3,3812.2,0.52449]
[1754586254964,41.3994,3812.3,3812.2,1.51669]
[1754586255860,42.4003,3812.3,3812.2,0.52449]
[1754586256068,42.4003,3812.3,3812.1,0.52451]
[1754586256359,1.6003,3812.2,3812.1,0.52451]
[1754586256959,41.9456,3812.2,3812.1,0.93931]
[1754586257157,60.6186,3812.2,3812.1,0.52451]
[1754586257360,61.0733,3812.2,3812.1,0.52451]
[1754586257567,60.0724,3812.2,3812.1,1.51671]
[1754586257865,40.8,3812.2,3812.1,2.09831]
[1754586259865,1.1456,3813.6,3813.0,0.9922]
[1754586260067,0.5462,3813.3,3812.9,0.9922]
[1754586260265,1.6003,3813.2,3813.0,0.52438]
[1754586260462,18.674,3813.1,3812.4,0.4148]
[1754586260766,40.8,3812.6,3812.5,0.52444]
[1754586260962,1.1456,3812.5,3811.8,0.4148]
[1754586261166,0.5994,3812.4,3811.8,0.4148]
[1754586261369,0.4547,3812.3,3811.8,0.4148]
[1754586261666,1.0009,3812.2,3811.8,1.31137]
[1754586261862,1.0009,3812.2,3811.6,1.31142]
[1754586261863,1.1456,3812.1,3812.0,1.51672]
[1754586262066,1.6003,3812.1,3811.9,0.52452]
[1754586262262,1.6003,3812.0,3811.9,0.52452]
[1754586262662,1.6003,3812.0,3811.8,0.52454]
[1754586262868,1.6003,3811.8,3811.0,1.31165]
[1754586263073,0.5994,3811.7,3811.6,0.52456]
[1754586263274,1.6003,3811.7,3811.6,0.52456]
[1754586263866,1.6003,3811.6,3811.5,0.52458]
[1754586264272,1.6003,3811.6,3811.0,1.5738]
[1754586264477,0.5462,3811.4,3811.1,0.5774]
[1754586264675,1.1456,3811.3,3811.2,0.52463]
[1754586264979,0.5994,3811.3,3811.2,1.51683]
[1754586265178,40.8,3811.5,3811.4,2.0984]
[1754586265368,40.8,3811.5,3811.4,0.4148]
[1754586265567,40.8,3811.5,3811.3,0.52461]
[1754586265568,1.6003,3811.4,3811.3,0.52461]
[1754586265775,40.8,3811.5,3811.3,0.52461]
[1754586265973,1.6003,3811.4,3811.3,0.52461]
[1754586266585,1.6003,3811.4,3810.9,1.35944635]
[1754586266876,40.8,3811.5,3811.0,0.52465]
[1754586266877,0.52464,3811.2,3811.0,0.52465]
[1754586267180,1.6003,3811.0,3810.9,1.46930635]
[1754586267874,18.677,3811.4,3810.9,1.46930635]
[1754586267875,19.8226,3811.4,3811.3,0.52462]
[1754586268069,20.2773,3811.4,3811.3,0.52462]
[1754586268480,61.0773,3811.4,3811.3,0.52462]
[1754586268776,61.0773,3811.4,3811.3,0.93942]
[1754586269079,61.0773,3811.4,3811.3,0.52462]
[1754586269281,1.6003,3811.3,3811.2,0.52462]
[1754586269775,0.5994,3811.2,3811.1,0.52464]
[1754586270183,20.2783,3811.2,3811.1,0.93944]
[1754586270382,42.4003,3811.2,3811.1,0.52464]
[1754586270570,61.0783,3811.2,3811.1,0.52464]
[1754586270978,41.3994,3811.2,3811.1,1.51684]
[1754586271272,40.8,3811.2,3811.1,1.51684]
[1754586271478,1.1456,3811.7,3811.6,0.52458]
[1754586271677,0.5994,3811.7,3811.6,1.51678]
[1754586272071,18.678,3812.1,3811.6,1.51678]
[1754586272072,19.2774,3812.1,3812.0,0.52452]
[1754586272282,20.2783,3812.1,3812.0,0.52452]
[1754586272481,20.2783,3812.1,3812.0,1.51672]
[1754586272482,0.5994,3812.1,3812.0,1.51672]
[1754586272881,1.13031092,3812.4,3812.3,0.52448]
[1754586273181,2.27591092,3812.4,3812.2,0.52449]
[1754586273390,1.6003,3812.1,3812.0,0.52451]
[1754586273777,18.678,3812.2,3811.3,0.4148]
[1754586273778,1.6003,3811.9,3811.3,0.4148]
[1754586273979,1.6003,3811.5,3811.4,0.52459]
[1754586274178,41.3246,3811.5,3811.3,0.52461]
[1754586274483,1.6003,3811.4,3811.3,0.52461]
[1754586275581,42.4003,3811.4,3811.3,0.52461]
[1754586275782,40.8,3811.4,3811.3,1.51681]
[1754586276483,42.4003,3811.4,3811.3,0.52461]
[1754586276886,40.8,3811.4,3810.9,1.93684635]
[1754586277074,1.6003,3811.3,3810.9,1.93684635]
[1754586277286,1.6003,3811.2,3811.0,0.52466]
[1754586277586,1.1456,3811.1,3811.0,0.93946]
[1754586277886,41.3994,3811.4,3811.3,1.51682]
[1754586278187,41.9456,3811.4,3811.3,1.51682]
[1754586278374,40.8,3811.4,3811.3,2.09842]
[1754586280882,0.4547,3812.2,3811.7,0.5816]
[1754586281082,0.5994,3812.2,3812.0,0.5774]
[1754586281283,1.51273512,3812.3,3812.2,0.9922]
[1754586281487,0.5994,3812.3,3812.2,0.9922]
[1754586281684,0.5994,3812.3,3812.1,0.52451]
[1754586281685,1.6003,3812.2,3812.1,0.52451]
[1754586281882,40.8,3812.2,3812.1,1.51671]
[1754586282086,40.8,3812.2,3812.1,2.09831]
[1754586282684,0.5994,3813.0,3812.9,0.5244]
[1754586282887,2.51453149,3813.0,3812.9,0.5244]
[1754586283280,2.27915935,3813.0,3812.9,0.5244]
[1754586283478,1.6003,3813.0,3812.9,0.5244]
[1754586283681,1.5882,3812.9,3812.8,0.52441]
[1754586283884,40.8,3813.0,3812.8,1.64111]
[1754586284089,1.84930629,3814.5,3812.2,1.31124]
[1754586284090,1.73947,3814.5,3812.7,0.5484]
[1754586284283,0.5937,3813.7,3813.2,0.52435]
[1754586284485,0.9945,3813.4,3813.3,0.52433]
[1754586284688,1.5882,3813.4,3813.3,0.52433]
[1754586284879,1.0227,3813.2,3812.4,0.5484]
[1754586285082,1.0227,3813.0,3812.8,0.5244]
[1754586285284,1.5882,3812.8,3812.4,0.5484]
[1754586285486,1.5882,3812.8,3812.7,0.52443]
[1754586286180,0.5937,3812.8,3812.7,1.07283]
[1754586286578,41.3937,3812.8,3812.7,1.07283]
[1754586286889,40.8,3812.8,3812.7,1.64113]
[1754586287682,0.5937,3813.2,3813.1,0.52437]
[1754586287893,1.0227,3813.6,3813.5,0.52432]
[1754586288087,1.5882,3813.6,3813.5,1.07272]
[1754586288395,0.9945,3814.5,3814.4,0.52419]
[1754586288585,0.9945,3814.4,3814.3,0.5242]
[1754586288786,1.5882,3814.3,3814.1,0.52423]
[1754586289086,1.5882,3814.2,3814.0,0.52424]
[1754586289288,1.5882,3814.0,3813.9,0.52425]
[1754586289494,0.52427,3813.9,3813.6,0.52429]
[1754586289692,1.5882,3813.7,3813.6,0.52429]
[1754586289888,0.52427,3813.9,3813.5,0.52431]
[1754586290093,1.5882,3813.6,3813.5,0.52431]
[1754586290493,18.672,3814.0,3813.0,1.31097]
[1754586290494,19.2375,3814.0,3813.9,0.52426]
[1754586290789,19.6665,3814.0,3813.9,0.52426]
[1754586290986,19.19626,3814.0,3813.7,0.52428]
[1754586291191,1.5882,3813.5,3813.4,0.52433]
[1754586291384,1.5882,3813.5,3812.3,1.3112]
[1754586291385,0.5655,3813.2,3812.3,1.3112]
[1754586291592,0.5655,3813.0,3812.4,1.31118]
[1754586291786,1.5882,3813.0,3812.9,0.5244]
[1754586292994,18.669,3813.5,3812.0,0.5484]
[1754586293199,1.5882,3812.6,3812.5,0.52444]
[1754586293696,42.3882,3812.6,3812.5,0.52444]
[1754586294594,1.5882,3812.5,3812.4,0.52446]
[1754586295195,42.3882,3812.5,3812.4,0.52446]
[1754586296098,42.3882,3812.5,3812.4,1.07286]
[1754586296799,40.8,3812.5,3812.4,1.64116]
[1754586297093,41.3937,3812.5,3812.4,1.64116]
[1754586297294,40.8,3812.5,3812.4,1.64116]
[1754586297894,41.3937,3812.5,3812.4,1.07286]
[1754586298096,42.3882,3812.5,3812.4,0.52446]
[1754586298496,41.3937,3812.5,3812.4,1.07286]
[1754586298898,42.3882,3812.5,3812.4,1.07286]
[1754586299995,42.3882,3812.5,3812.4,0.52446]
[1754586300194,42.3882,3812.5,3812.0,1.1167]
[1754586300195,40.8,3812.5,3812.0,0.5484]
[1754586300400,0.52448,3812.4,3812.0,0.52451]
[1754586300599,1.5882,3812.2,3812.1,0.5245]
[1754586300798,41.8227,3812.2,3812.1,1.0729]
[1754586301004,40.8,3812.2,3812.1,1.6412]
[1754586301499,40.8,3812.2,3812.1,20.3072]
[1754586301893,40.8,3812.2,3812.1,19.1905]
[1754586302099,40.8,3812.2,3812.1,20.3072]
[1754586302298,41.3937,3812.2,3812.1,1.0729]
[1754586302498,40.8,3812.2,3812.1,1.6412]
[1754586305403,0.5937,3812.9,3812.7,0.52443]
[1754586305605,0.5937,3813.2,3812.9,0.5484]
[1754586305803,0.5937,3813.2,3813.1,0.5484]
[1754586305999,0.5937,3813.2,3813.1,1.07277]
[1754586306502,42.3882,3813.2,3813.1,1.07277]
[1754586306702,41.3937,3813.2,3813.1,1.07277]
[1754586307001,40.8,3813.2,3813.1,1.64107]
[1754586308108,41.3937,3813.2,3813.1,1.64107]
[1754586308408,41.3937,3813.2,3813.1,1.07277]
[1754586308901,40.8,3813.2,3813.1,1.64107]
[1754586309607,40.8,3813.2,3812.7,18.663]
[1754586309608,40.8,3813.2,3813.0,0.52438]
[1754586309907,0.5655,3812.7,3812.4,0.52446]
[1754586310107,0.9945,3812.5,3812.4,0.52446]
[1754586310306,1.5882,3812.4,3812.3,0.52447]
[1754586311008,42.3882,3812.4,3812.3,0.52447]
[1754586311305,42.3882,3812.4,3812.3,1.49467]
[1754586311607,42.3882,3812.4,3812.3,0.52447]
[1754586312001,42.3882,3812.4,3812.3,1.49467]
[1754586312302,41.3937,3812.4,3812.3,1.49467]
[1754586312698,42.3882,3812.4,3812.3,1.49467]
[1754586312909,1.5651,3812.3,3812.1,0.5245]
[1754586313111,40.8,3812.4,3812.2,0.52448]
[1754586313608,1.5651,3812.3,3812.2,0.52448]
[1754586314105,0.5573,3812.3,3812.2,2.07928]
[1754586314307,40.8,3812.4,3812.3,0.9996]
[1754586314503,40.8,3812.4,3812.3,19.6576]
[1754586314702,40.8,3812.4,3812.3,20.2128]
[1754586315602,0.5573,3813.0,3812.4,2.62236]
[1754586315808,1.5651,3813.4,3813.3,0.52434]
[1754586316106,1.5651,3813.4,3812.8,0.5681]
[1754586316412,1.5651,3813.1,3812.2,19.96922]
[1754586316598,1.5651,3812.3,3812.2,18.658]
[1754586316803,1.5651,3812.3,3812.2,20.1821]
[1754586317107,0.5573,3812.6,3812.5,1.52405]
[1754586317309,0.9992,3812.6,3812.5,1.52405]
[1754586317504,0.5573,3812.6,3812.5,1.52405]
[1754586317710,0.5573,3813.3,3813.2,1.52396]
[1754586317911,18.657,3814.2,3813.9,0.52425]
[1754586318110,18.657,3814.1,3813.9,0.52425]
[1754586318303,40.8,3814.0,3813.8,0.52427]
[1754586318504,0.5573,3813.9,3813.7,0.52428]
[1754586318712,1.5651,3813.8,3813.7,0.52428]
[1754586319707,18.657,3814.1,3813.9,0.52425]
[1754586319907,0.5659,3814.0,3813.8,0.52427]
[1754586320108,0.5659,3814.0,3812.9,1.311]
[1754586320414,1.0078,3813.5,3813.4,0.52433]
[1754586320615,1.5651,3813.5,3813.4,0.52433]
[1754586321419,0.5659,3813.5,3812.9,1.31099]
[1754586321713,1.5651,3813.3,3813.2,0.52436]
[1754586322617,0.5573,3813.3,3813.2,1.52396]
[1754586323117,0.52433,3813.5,3813.2,0.52435]
[1754586323315,0.52434,3813.4,3813.1,0.52437]
[1754586323610,42.11092,3813.2,3812.1,0.4315]
[1754586323804,1.0078,3812.5,3812.4,0.52447]
[1754586324004,0.52444,3812.7,3812.4,0.52447]
[1754586324209,1.5651,3812.5,3812.4,0.52447]
[1754586324521,40.8,3812.5,3812.4,0.52447]
[1754586324820,40.8,3812.5,3812.4,2.07927]
[1754586325615,41.3573,3812.5,3812.4,0.52447]
[1754586325816,42.3651,3812.5,3812.4,0.52447]
[1754586326015,40.8,3812.5,3812.4,1.52407]
[1754586326611,42.3651,3812.5,3812.4,0.52447]
[1754586327516,1.5651,3812.4,3811.9,0.4315]
[1754586327813,40.8,3812.5,3812.0,0.52453]
[1754586328014,1.5651,3812.4,3812.3,0.52448]
[1754586328518,1.5651,3812.3,3812.2,0.52449]
[1754586329514,42.3651,3812.3,3812.2,0.52449]
[1754586330011,1.5651,3812.2,3811.7,0.5552]
[1754586330204,1.5651,3812.2,3811.4,1.31151]
[1754586330205,1.0078,3812.0,3811.5,0.5681]
[1754586330405,0.52453,3812.0,3811.5,0.5681]
[1754586330611,1.5651,3811.5,3811.4,0.5246]
[1754586331013,1.5651,3811.5,3811.4,1.5242]
[1754586331316,41.3573,3811.5,3811.4,1.5242]
[1754586331516,42.3651,3811.5,3811.4,0.5246]
[1754586331910,40.8,3811.5,3811.4,1.5242]
[1754586332115,40.8,3811.5,3811.4,2.0794]
[1754586332610,40.8,3811.5,3811.4,20.7284]
[1754586332816,40.8,3811.5,3811.4,2.0794]
[1754586333013,41.3573,3811.5,3811.4,1.5242]
[1754586333214,41.9232,3811.5,3811.4,1.5242]
[1754586333713,0.5659,3813.0,3812.9,0.5244]
[1754586333917,1.5651,3813.0,3812.9,0.5244]
[1754586334718,42.3651,3813.0,3812.9,1.524]
[1754586334915,42.3651,3813.0,3812.9,0.5244]
[1754586335821,42.3651,3813.0,3812.9,1.524]
[1754586336420,42.3651,3813.0,3812.9,0.5244]
[1754586336618,40.8,3813.0,3812.5,0.9996]
[1754586336820,40.8,3813.0,3812.0,0.4315]
[1754586336821,0.5659,3812.6,3812.0,0.4315]
[1754586337010,0.52443,3812.7,3812.4,0.52446]
[1754586337317,0.52444,3812.6,3811.9,1.31136]
[1754586337512,19.17144,3812.7,3812.5,0.52446]
[1754586337716,1.5651,3812.6,3812.5,0.52446]
[1754586338114,0.4419,3812.0,3811.9,0.52453]
[1754586338314,42.3651,3812.0,3811.9,0.52453]
[1754586339023,0.52458,3811.7,3811.5,0.52459]
[1754586339321,1.5651,3811.6,3811.5,0.52459]
[1754586339523,1.5651,3811.5,3810.9,1.51274635]
[1754586339713,0.4419,3811.4,3810.9,1.51274635]
[1754586339914,0.4419,3811.4,3810.9,0.94464635]
[1754586340116,41.32465,3811.2,3810.9,1.46931635]
[1754586340312,1.0078,3811.0,3810.9,1.46931635]
[1754586340528,1.5651,3811.0,3810.9,0.94464635]
[1754586341019,42.3651,3811.0,3810.9,0.94464635]
[1754586341826,61.0121,3811.0,3810.9,0.94464635]
[1754586343022,1.0057,3810.9,3810.5,0.52473]
[1754586343221,1.0057,3810.9,3809.5,0.4448]
[1754586343222,1.1637,3810.8,3809.5,0.4448]
[1754586343521,1.68854,3809.7,3809.5,0.52487]
[1754586343721,0.52487,3809.6,3809.3,0.52489]
[1754586343927,1.5876,3809.5,3808.9,0.4448]
[1754586344122,1.5876,3809.4,3809.3,0.52488]
[1754586344422,42.3876,3809.4,3809.3,0.52488]
[1754586345026,42.3876,3809.4,3809.3,0.96968]
[1754586345324,42.3876,3809.4,3809.3,0.52488]
[1754586346320,40.8,3809.4,3808.9,0.4448]
[1754586346522,40.8,3809.4,3808.4,1.0199]
[1754586346523,1.0057,3809.0,3808.4,1.0199]
[1754586346716,1.5876,3808.8,3808.6,0.52498]
[1754586347019,1.5876,3808.7,3808.5,0.525]
[1754586347223,1.5876,3808.5,3808.4,0.52502]
[1754586347521,1.5876,3808.5,3808.4,0.96982]
[1754586347825,1.5876,3809.7,3808.9,1.1241]
[1754586348018,18.65,3809.6,3809.0,0.4448]
[1754586348219,18.65,3809.6,3809.5,0.52487]
[1754586348519,61.0376,3809.6,3809.5,0.52487]
[1754586348726,40.8,3809.6,3809.5,2.09377]
[1754586350221,1.5876,3810.6,3810.5,0.52473]
[1754586350627,1.5876,3810.5,3810.1,0.9938]
[1754586350821,1.5876,3810.6,3810.1,0.9938]
[1754586351019,1.68843,3810.5,3809.7,1.31211]
[1754586351325,1.5876,3810.3,3810.2,0.52477]
[1754586351927,18.65,3810.4,3809.9,1.31204]
[1754586352129,1.5876,3810.7,3810.6,0.52472]
[1754586352433,1.0057,3810.6,3810.5,0.52472]
[1754586352621,1.5876,3810.6,3810.5,0.52472]
[1754586353227,1.5876,3810.4,3810.3,0.52475]
[1754586353733,1.5876,3810.3,3810.2,0.52477]
[1754586354334,18.649,3810.4,3810.0,0.52479]
[1754586354535,1.5876,3810.0,3809.9,0.52481]
[1754586354724,0.52482,3809.9,3809.8,0.52483]
[1754586354927,1.5876,3809.6,3809.5,0.52487]
[1754586355535,42.3876,3809.6,3809.5,0.52487]
[1754586355733,1.5876,3809.5,3809.4,0.52487]
[1754586355929,1.5876,3809.3,3808.8,1.31242]
[1754586356127,0.52488,3809.4,3809.3,0.5249]
[1754586356332,0.52488,3809.4,3809.2,0.52491]
[1754586356632,18.648,3809.5,3808.9,0.52494]
[1754586356633,0.5819,3809.0,3808.9,0.52494]
[1754586356935,61.0346,3809.0,3808.9,0.52494]
[1754586357239,61.0346,3809.0,3808.5,1.0199]
[1754586357240,0.4239,3808.8,3808.7,0.52498]
[1754586358030,1.5876,3808.8,3808.7,0.52498]
[1754586359032,0.5818,3808.8,3808.4,0.52501]
[1754586359231,1.0057,3808.3,3807.9,1.47047056]
[1754586359429,1.5876,3808.0,3807.9,0.94539056]
[1754586359829,43.03802,3810.1,3807.9,2.51429056]
[1754586359830,1.5876,3809.1,3807.9,2.51429056]
[1754586360030,0.52505,3808.3,3808.0,0.52508]
[1754586360230,1.5876,3808.2,3808.0,0.96988]
[1754586360432,1.5876,3808.1,3808.0,0.52508]
[1754586360840,1.5876,3808.1,3807.9,1.47047056]
[1754586361136,1.1637,3808.0,3807.9,0.94539056]
[1754586361336,1.5876,3808.0,3807.9,0.94539056]
[1754586361536,18.649,3808.3,3807.9,0.94539056]
[1754586361740,0.5819,3808.2,3808.0,0.96987]
[1754586361934,18.649,3808.3,3808.2,0.52505]
[1754586362131,19.2309,3808.3,3808.0,3.58969999]
[1754586362331,1.5876,3808.1,3808.0,3.58969999]
[1754586362533,1.0057,3807.1,3807.0,0.549]
[1754586362730,1.0057,3807.1,3806.1,1.31336]
[1754586362731,1.0057,3807.0,3805.5,0.4448]
[1754586363036,2.31879,3806.9,3805.4,1.51923]
[1754586363334,2.31879,3806.9,3805.4,1.07443]
[1754586363335,40.8,3805.5,3805.4,1.07443]
[1754586363537,40.8,3805.5,3805.4,0.52543]
[1754586363936,41.2239,3805.5,3805.3,0.52545]
[1754586364240,18.65,3805.4,3805.3,0.52545]
[1754586364437,40.8,3805.5,3805.4,1.0199]
[1754586364843,40.8,3805.5,3805.4,1.5689]
[1754586365138,1.0057,3806.5,3806.2,0.52532]
[1754586365342,18.65,3806.4,3806.3,1.54521]
[1754586365542,18.65,3806.4,3806.3,1.0199]
[1754586365837,0.5819,3806.9,3806.6,0.52527]
[1754586366052,18.655,3807.0,3806.9,0.52523]
[1754586366237,19.6607,3807.0,3805.8,0.4448]
[1754586366536,1.0057,3808.3,3808.0,0.52507]
[1754586366741,1.0057,3808.3,3808.1,0.549]
[1754586366940,40.8,3808.2,3808.1,0.549]
[1754586367135,1.0057,3808.1,3808.0,0.52507]
[1754586367333,20.37148605,3808.1,3808.0,0.52507]
[1754586367531,0.67178605,3808.1,3808.0,2.09397]
[1754586367737,18.691,3809.2,3808.9,0.549]
[1754586367943,0.67178605,3809.1,3809.0,0.549]
[1754586368645,1.0057,3809.2,3809.1,1.07393]
[1754586368845,0.67261241,3809.5,3809.4,1.64898]
[1754586369040,18.697,3809.6,3809.4,1.5689]
[1754586369245,19.7027,3809.6,3809.4,1.5689]
[1754586369450,1.0057,3809.5,3808.9,1.0199]
[1754586369744,0.5819,3809.4,3809.0,1.07393]
[1754586369944,1.0057,3809.5,3808.5,0.52501]
[1754586370141,2.26054914,3809.5,3808.6,3.58969999]
[1754586370339,1.0057,3808.9,3808.7,0.52498]
[1754586370542,1.0057,3808.9,3808.7,1.54488]
[1754586370850,1.0057,3808.9,3808.8,0.549]
[1754586371048,1.0057,3808.8,3808.6,4.11468999]
[1754586371344,19.6977,3809.3,3809.1,0.549]
[1754586371554,19.6977,3809.3,3808.8,1.07396]
[1754586371555,1.0057,3809.1,3808.8,1.07396]
[1754586371848,18.692,3809.3,3809.0,0.52494]
[1754586372041,0.4239,3809.6,3809.4,0.52488]
[1754586372245,18.68,3809.5,3809.4,2.09378]
[1754586372945,0.5819,3810.1,3810.0,0.5248]
[1754586373146,18.68,3810.6,3810.2,1.5927]
[1754586373345,1.0088,3810.3,3810.2,1.1526]
[1754586373540,41.8088,3810.3,3810.2,0.5726]
[1754586374650,41.8088,3810.3,3809.8,1.0201]
[1754586374951,1.0088,3810.1,3809.9,0.5726]
[1754586375152,1.53359,3810.1,3810.0,3.58969999]
[1754586375355,2.09889,3810.1,3810.0,3.58969999]
[1754586375756,60.99459,3810.1,3810.0,4.16229999]
[1754586376053,61.55989,3810.1,3810.0,3.58969999]
[1754586377662,61.55989,3810.1,3810.0,2.15096999]
[1754586377850,61.55989,3810.1,3810.0,1.48849155]
[1754586378047,62.23413736,3810.1,3810.0,0.46409155]
[1754586378858,43.57313736,3810.1,3810.0,0.46409155]
[1754586379061,62.22413736,3810.1,3810.0,0.46409155]
[1754586379258,41.47424736,3810.1,3810.0,1.61669155]
[1754586379460,40.8,3810.1,3810.0,2.05679155]
[1754586381052,40.8,3810.1,3810.0,0.46409155]
[1754586381257,41.3653,3810.1,3810.0,0.46409155]
[1754586382566,59.45,3810.1,3810.0,1.61669155]
[1754586382762,59.45,3810.1,3810.0,2.05679155]
[1754586382959,60.0153,3810.1,3810.0,0.46409155]
[1754586383759,59.45,3810.1,3810.0,2.05679155]
[1754586384265,40.8,3810.1,3810.0,2.05679155]
[1754586384654,59.45,3810.1,3810.0,0.46409155]
[1754586385061,60.0153,3810.1,3810.0,0.46409155]
[1754586385558,59.449,3810.1,3810.0,2.05679155]
[1754586386364,60.0143,3810.1,3810.0,0.46409155]
[1754586387459,60.0143,3810.1,3810.0,1.04409155]
[1754586387663,40.8,3810.1,3810.0,2.05679155]
[1754586387966,59.449,3810.1,3810.0,2.05679155]
[1754586389464,40.8,3810.1,3810.0,2.05679155]
[1754586389666,59.449,3810.1,3810.0,2.05679155]
[1754586389966,59.448,3810.1,3810.0,1.61669155]
[1754586390163,60.0133,3810.1,3810.0,0.46409155]
[1754586391666,41.3653,3810.1,3810.0,0.46409155]
[1754586391867,59.448,3810.1,3810.0,2.05679155]
[1754586392468,40.8,3810.1,3810.0,2.05679155]
[1754586392664,59.448,3810.1,3810.0,2.05679155]
[1754586393365,59.97279,3810.1,3810.0,2.05679155]
[1754586395470,41.32479,3810.1,3810.0,2.05679155]
[1754586395666,40.8,3810.1,3810.0,2.05679155]
[1754586395866,59.447,3810.1,3810.0,2.05679155]
[1754586396758,59.447,3810.1,3810.0,0.46409155]
[1754586396963,60.0123,3810.1,3810.0,0.46409155]
[1754586397167,60.69156464,3810.1,3810.0,0.46409155]
[1754586397366,60.0123,3810.1,3810.0,0.46409155]
[1754586397767,59.447,3810.1,3810.0,1.04409155]
[1754586397971,60.0123,3810.1,3810.0,0.46409155]
[1754586398264,60.12703083,3810.1,3810.0,1.04409155]
[1754586398465,2.70456814,3810.9,3810.0,1.04409155]
[1754586398466,0.52476,3810.4,3810.0,2.05679155]
[1754586398674,18.646,3810.3,3810.2,1.5927]
[1754586398869,1.0,3811.0,3810.2,2.90462]
[1754586399074,1.0,3811.0,3810.9,1.5927]
[1754586399566,41.3424,3811.0,3810.9,1.5927]
[1754586399871,0.52453,3812.1,3812.0,1.0201]
[1754586400070,19.17053,3812.1,3812.0,1.5927]
[1754586400261,18.87355622,3812.1,3812.0,2.05679155]
[1754586400665,59.67355622,3812.1,3812.0,2.05679155]
[1754586400864,41.02755622,3812.1,3812.0,2.05679155]
[1754586401270,40.8,3812.1,3812.0,2.05679155]
[1754586401467,41.02757336,3812.1,3812.0,2.05679155]
[1754586402268,41.55208336,3812.1,3812.0,2.05679155]
[1754586402465,43.12618336,3812.1,3812.0,0.46409155]
[1754586403178,0.52462,3811.3,3811.2,0.58]
[1754586403467,20.78942,3811.3,3811.1,0.4401]
[1754586403768,42.4228,3811.2,3811.1,1.0482]
[1754586403966,42.4228,3811.2,3811.1,0.6081]
[1754586403967,41.8104,3811.2,3811.1,0.6081]
[1754586404172,40.8,3811.2,3811.1,1.6348]
[1754586405175,41.8104,3811.2,3811.1,0.6081]
[1754586405470,0.52466,3811.0,3810.9,0.6081]
[1754586405675,20.17606,3811.0,3810.9,0.6081]
[1754586405866,1.53506,3811.0,3810.9,0.6081]
[1754586406066,0.5246,3811.5,3811.1,0.52464]
[1754586406276,18.64,3811.4,3811.3,1.6348]
[1754586406467,18.64,3811.4,3811.3,2.15942]
[1754586406668,1.39282814,3812.1,3811.7,0.5818]
[1754586406971,0.52455,3811.9,3811.8,1.6348]
[1754586407162,41.32455,3811.9,3811.8,1.6348]
[1754586407363,42.33495,3811.9,3811.8,1.6348]
[1754586407563,42.94735,3811.9,3811.8,0.6081]
[1754586407867,0.52458,3811.7,3811.5,1.6348]
[1754586408070,18.639,3811.6,3811.5,1.6348]
[1754586408271,40.8,3811.9,3811.1,3.58969999]
[1754586408472,40.8,3811.9,3811.8,1.6348]
[1754586410169,40.8,3811.9,3811.8,5.22449999]
[1754586410366,41.3592,3811.9,3811.8,5.22449999]
[1754586410571,41.32454,3811.9,3811.8,5.22449999]
[1754586411673,40.8,3811.9,3811.8,5.22449999]
[1754586413180,41.3592,3811.9,3811.8,5.22449999]
[1754586413471,61.0588,3811.9,3811.8,4.19779999]
[1754586413669,61.0588,3811.9,3811.8,3.58969999]
[1754586414275,61.0588,3811.9,3811.8,3.03391999]
[1754586414475,61.0588,3811.9,3811.8,2.43826999]
[1754586414677,61.0588,3811.9,3811.8,1.01321999]
[1754586414878,61.0588,3811.9,3811.8,0.39810999]